[Event "Titled Tuesday Blitz August 16 Early 2022"]
[White "Shashikant, Kutwal"]
[Black "Sultana, Sharmin Shirin"]
[WhiteFideId "5006520"]
[BlackFideId "10204482"]
[WhiteElo "2321"]
[BlackElo "1987"]
[Result "1-0"]
[Round "02"]
[TimeControl "180+2"]
[Date "2022.08.18"]
[WhiteClock "0:00:00"]
[BlackClock "0:00:00"]

1. e4 {[%clk 0:00:00]}  e5 {[%clk 0:00:00]} 2. Nf3 {[%clk 0:00:00]}  Nc6 {[%clk 0:00:00]} 3. Bc4 {[%clk 0:00:00]}  Nf6 {[%clk 0:00:00]} 4. d4 {[%clk 0:00:00]}  Nxe4 {[%clk 0:00:00]} 5. dxe5 {[%clk 0:00:00]}  d5 {[%clk 0:00:00]} 6. Bxd5 {[%clk 0:00:00]}  Bf5 {[%clk 0:00:00]} 7. O-O {[%clk 0:00:00]}  Be7 {[%clk 0:00:00]} 8. Bxc6+ {[%clk 0:00:00]}  bxc6 {[%clk 0:00:00]} 9. Nd4 {[%clk 0:00:00]}  Qd7 {[%clk 0:00:00]} 10. Re1 {[%clk 0:00:00]}  Ng5 {[%clk 0:00:00]} 11. Bxg5 {[%clk 0:00:00]}  Bxg5 {[%clk 0:00:00]} 12. e6 {[%clk 0:00:00]} 1-0


[Site "https://www.chess.com"]

[Event "Titled Tuesday Blitz August 16 Early 2022"]
[White "Shuvalova, Polina"]
[Black "Bortnyk, Olexandr"]
[WhiteFideId "24171760"]
[BlackFideId "14120828"]
[WhiteElo "2330"]
[BlackElo "2723"]
[Result "0-1"]
[Round "02"]
[TimeControl "180+1"]
[Date "2022.08.16"]
[WhiteClock "0:00:41"]
[BlackClock "0:01:26"]

1. e4 {[%clk 0:03:00]}  Nf6 {[%clk 0:02:57]} 2. e5 {[%clk 0:03:00]}  Nd5 {[%clk 0:02:57]} 3. d4 {[%clk 0:03:01]}  d6 {[%clk 0:02:57]} 4. exd6 {[%clk 0:03:01]}  exd6 {[%clk 0:02:58]} 5. Nf3 {[%clk 0:03:01]}  Be7 {[%clk 0:02:58]} 6. Bd3 {[%clk 0:03:01]}  O-O {[%clk 0:02:56]} 7. c4 {[%clk 0:03:01]}  Nb4 {[%clk 0:02:51]} 8. Be2 {[%clk 0:03:00]}  Bf5 {[%clk 0:02:50]} 9. Na3 {[%clk 0:03:01]}  Bf6 {[%clk 0:02:43]} 10. O-O {[%clk 0:03:00]}  a5 {[%clk 0:02:41]} 11. Be3 {[%clk 0:02:55]}  Re8 {[%clk 0:02:38]} 12. Qd2 {[%clk 0:02:54]}  h6 {[%clk 0:02:38]} 13. Rfe1 {[%clk 0:02:53]}  N8c6 {[%clk 0:02:32]} 14. h3 {[%clk 0:02:43]}  Qd7 {[%clk 0:02:30]} 15. Bf1 {[%clk 0:02:27]}  Re7 {[%clk 0:02:23]} 16. b3 {[%clk 0:01:46]}  b6 {[%clk 0:01:58]} 17. Rac1 {[%clk 0:01:45]}  a4 {[%clk 0:01:47]} 18. d5 {[%clk 0:01:39]}  axb3 {[%clk 0:01:47]} 19. dxc6 {[%clk 0:01:37]}  Nxc6 {[%clk 0:01:48]} 20. Nb5 {[%clk 0:01:22]}  Rxa2 {[%clk 0:01:47]} 21. Qd1 {[%clk 0:01:13]}  b2 {[%clk 0:01:46]} 22. Rb1 {[%clk 0:01:10]}  Bxb1 {[%clk 0:01:30]} 23. Qxb1 {[%clk 0:01:10]}  Ra1 {[%clk 0:01:30]} 24. Qc2 {[%clk 0:01:07]}  Nb4 {[%clk 0:01:28]} 25. Qb3 {[%clk 0:01:06]}  Qf5 {[%clk 0:01:29]} 26. Qxb4 {[%clk 0:00:41]}  Rxe1 {[%clk 0:01:26]} 0-1


[Site "https://www.chess.com"]

[Event "Titled Tuesday Blitz August 16 Early 2022"]
[White "Sirosh, Ilja"]
[Black "Jain, Naveen"]
[WhiteFideId "4500458"]
[BlackFideId "5003970"]
[WhiteElo "2255"]
[BlackElo "2036"]
[Result "1/2-1/2"]
[Round "02"]
[TimeControl "180+2"]
[Date "2022.08.18"]
[WhiteClock "0:00:00"]
[BlackClock "0:00:00"]

1. e4 {[%clk 0:00:00]}  Nf6 {[%clk 0:00:00]} 2. e5 {[%clk 0:00:00]}  Nd5 {[%clk 0:00:00]} 3. d4 {[%clk 0:00:00]}  d6 {[%clk 0:00:00]} 4. Nf3 {[%clk 0:00:00]}  dxe5 {[%clk 0:00:00]} 5. Nxe5 {[%clk 0:00:00]}  c6 {[%clk 0:00:00]} 6. Be2 {[%clk 0:00:00]}  Bf5 {[%clk 0:00:00]} 7. O-O {[%clk 0:00:00]}  Nd7 {[%clk 0:00:00]} 8. Nf3 {[%clk 0:00:00]}  h6 {[%clk 0:00:00]} 9. a3 {[%clk 0:00:00]}  e6 {[%clk 0:00:00]} 10. c4 {[%clk 0:00:00]}  Nc7 {[%clk 0:00:00]} 11. Nc3 {[%clk 0:00:00]}  Be7 {[%clk 0:00:00]} 12. Bd3 {[%clk 0:00:00]}  Bxd3 {[%clk 0:00:00]} 13. Qxd3 {[%clk 0:00:00]}  O-O {[%clk 0:00:00]} 14. Re1 {[%clk 0:00:00]}  Bf6 {[%clk 0:00:00]} 15. Bf4 {[%clk 0:00:00]}  c5 {[%clk 0:00:00]} 16. d5 {[%clk 0:00:00]}  exd5 {[%clk 0:00:00]} 17. cxd5 {[%clk 0:00:00]}  Nb6 {[%clk 0:00:00]} 18. Bxc7 {[%clk 0:00:00]}  Qxc7 {[%clk 0:00:00]} 19. Rad1 {[%clk 0:00:00]}  Qd7 {[%clk 0:00:00]} 20. Ne4 {[%clk 0:00:00]}  Bxb2 {[%clk 0:00:00]} 21. Nxc5 {[%clk 0:00:00]}  Qc7 {[%clk 0:00:00]} 22. Ne4 {[%clk 0:00:00]}  Rad8 {[%clk 0:00:00]} 23. d6 {[%clk 0:00:00]}  Qc6 {[%clk 0:00:00]} 24. Re2 {[%clk 0:00:00]}  Rfe8 {[%clk 0:00:00]} 25. Rxb2 {[%clk 0:00:00]}  Qxe4 {[%clk 0:00:00]} 26. Qxe4 {[%clk 0:00:00]}  Rxe4 {[%clk 0:00:00]} 27. Rb4 {[%clk 0:00:00]}  Rxb4 {[%clk 0:00:00]} 28. axb4 {[%clk 0:00:00]}  f6 {[%clk 0:00:00]} 29. h4 {[%clk 0:00:00]}  Nc4 {[%clk 0:00:00]} 30. Rc1 {[%clk 0:00:00]}  Nxd6 {[%clk 0:00:00]} 31. Rc7 {[%clk 0:00:00]}  a6 {[%clk 0:00:00]} 32. h5 {[%clk 0:00:00]}  b6 {[%clk 0:00:00]} 33. g4 {[%clk 0:00:00]}  a5 {[%clk 0:00:00]} 34. bxa5 {[%clk 0:00:00]}  bxa5 {[%clk 0:00:00]} 35. Ra7 {[%clk 0:00:00]}  Nc4 {[%clk 0:00:00]} 36. Nh4 {[%clk 0:00:00]}  Ne5 {[%clk 0:00:00]} 37. Nf5 {[%clk 0:00:00]}  Rd7 {[%clk 0:00:00]} 38. Ra8+ {[%clk 0:00:00]}  Kf7 {[%clk 0:00:00]} 39. f3 {[%clk 0:00:00]}  Nxf3+ {[%clk 0:00:00]} 40. Kf2 {[%clk 0:00:00]}  Ne5 {[%clk 0:00:00]} 41. Kg3 {[%clk 0:00:00]}  Rd3+ {[%clk 0:00:00]} 42. Kf4 {[%clk 0:00:00]}  Rd7 {[%clk 0:00:00]} 43. Rxa5 {[%clk 0:00:00]}  Nd3+ {[%clk 0:00:00]} 44. Ke4 {[%clk 0:00:00]}  Ne5 {[%clk 0:00:00]} 45. Kf4 {[%clk 0:00:00]}  Nd3+ {[%clk 0:00:00]} 46. Kg3 {[%clk 0:00:00]}  Ne5 {[%clk 0:00:00]} 47. Nh4 {[%clk 0:00:00]}  Rc7 {[%clk 0:00:00]} 48. Ra3 {[%clk 0:00:00]}  Rc4 {[%clk 0:00:00]} 49. Nf5 {[%clk 0:00:00]}  Rxg4+ {[%clk 0:00:00]} 50. Kh3 {[%clk 0:00:00]}  Rg5 {[%clk 0:00:00]} 51. Ra7+ {[%clk 0:00:00]}  Ke6 {[%clk 0:00:00]} 52. Nxg7+ {[%clk 0:00:00]}  Kd5 {[%clk 0:00:00]} 53. Ra5+ {[%clk 0:00:00]}  Ke4 {[%clk 0:00:00]} 54. Ne6 {[%clk 0:00:00]}  Rxh5+ {[%clk 0:00:00]} 55. Kg3 {[%clk 0:00:00]}  Rf5 {[%clk 0:00:00]} 56. Ng7 {[%clk 0:00:00]}  Rg5+ {[%clk 0:00:00]} 57. Kh4 {[%clk 0:00:00]}  Rxg7 {[%clk 0:00:00]} 58. Kh5 {[%clk 0:00:00]}  Kf5 {[%clk 0:00:00]} 59. Kxh6 {[%clk 0:00:00]}  Rg5 {[%clk 0:00:00]} 60. Ra8 {[%clk 0:00:00]}  Nf7+ {[%clk 0:00:00]} 61. Kh7 {[%clk 0:00:00]}  Rh5+ {[%clk 0:00:00]} 62. Kg7 {[%clk 0:00:00]}  Ne5 {[%clk 0:00:00]} 63. Ra6 {[%clk 0:00:00]}  Rg5+ {[%clk 0:00:00]} 64. Kf8 {[%clk 0:00:00]}  Rh5 {[%clk 0:00:00]} 65. Kg7 {[%clk 0:00:00]}  Rh3 {[%clk 0:00:00]} 66. Rxf6+ {[%clk 0:00:00]}  Ke4 {[%clk 0:00:00]} 67. Ra6 {[%clk 0:00:00]}  Rg3+ {[%clk 0:00:00]} 68. Kf6 {[%clk 0:00:00]}  Rf3+ {[%clk 0:00:00]} 69. Ke6 {[%clk 0:00:00]}  Rd3 {[%clk 0:00:00]} 70. Ra4+ {[%clk 0:00:00]}  Rd4 {[%clk 0:00:00]} 71. Ra1 {[%clk 0:00:00]}  Rd3 {[%clk 0:00:00]} 72. Re1+ {[%clk 0:00:00]}  Re3 {[%clk 0:00:00]} 73. Rb1 {[%clk 0:00:00]}  Kd3 {[%clk 0:00:00]} 74. Rb3+ {[%clk 0:00:00]}  Ke2 {[%clk 0:00:00]} 75. Rb2+ {[%clk 0:00:00]}  Kf3 {[%clk 0:00:00]} 76. Kd5 {[%clk 0:00:00]}  Nd3 {[%clk 0:00:00]} 77. Rb8 {[%clk 0:00:00]}  Nf4+ {[%clk 0:00:00]} 78. Kd4 {[%clk 0:00:00]}  Re4+ {[%clk 0:00:00]} 79. Kc3 {[%clk 0:00:00]}  Re3+ {[%clk 0:00:00]} 80. Kd2 {[%clk 0:00:00]}  Re4 {[%clk 0:00:00]} 81. Rb3+ {[%clk 0:00:00]}  Kg4 {[%clk 0:00:00]} 82. Rb8 {[%clk 0:00:00]}  Re2+ {[%clk 0:00:00]} 83. Kc3 {[%clk 0:00:00]}  Re3+ {[%clk 0:00:00]} 84. Kd4 {[%clk 0:00:00]}  Kf3 {[%clk 0:00:00]} 85. Rh8 {[%clk 0:00:00]}  Rd3+ {[%clk 0:00:00]} 86. Kc4 {[%clk 0:00:00]}  Re3 {[%clk 0:00:00]} 87. Kd4 {[%clk 0:00:00]}  Rd3+ {[%clk 0:00:00]} 88. Ke5 {[%clk 0:00:00]}  Rd5+ {[%clk 0:00:00]} 89. Kf6 {[%clk 0:00:00]}  Ke4 {[%clk 0:00:00]} 90. Re8+ {[%clk 0:00:00]}  Kf3 {[%clk 0:00:00]} 91. Ra8 {[%clk 0:00:00]}  Rc5 {[%clk 0:00:00]} 92. Ra3+ {[%clk 0:00:00]}  Ke4 {[%clk 0:00:00]} 93. Ra4+ {[%clk 0:00:00]}  Ke3 {[%clk 0:00:00]} 94. Ra3+ {[%clk 0:00:00]}  Nd3 {[%clk 0:00:00]} 95. Ra8 {[%clk 0:00:00]}  Rc6+ {[%clk 0:00:00]} 96. Kf5 {[%clk 0:00:00]}  Rc5+ {[%clk 0:00:00]} 97. Kf6 {[%clk 0:00:00]}  Rc6+ {[%clk 0:00:00]} 98. Kf5 {[%clk 0:00:00]}  Rc5+ {[%clk 0:00:00]} 99. Kf6 {[%clk 0:00:00]} 1/2-1/2


[Site "https://www.chess.com"]

[Event "Titled Tuesday Blitz August 16 Early 2022"]
[White "So, Wesley"]
[Black "Taichman, Ori"]
[WhiteFideId "5202213"]
[BlackFideId "2804069"]
[WhiteElo "2763"]
[BlackElo "2227"]
[Result "1-0"]
[Round "02"]
[TimeControl "180+1"]
[Date "2022.08.16"]
[WhiteClock "0:01:10"]
[BlackClock "0:00:51"]

1. d4 {[%clk 0:03:00]}  Nf6 {[%clk 0:02:58]} 2. Nf3 {[%clk 0:02:59]}  g6 {[%clk 0:02:56]} 3. Nbd2 {[%clk 0:02:58]}  d5 {[%clk 0:02:54]} 4. e3 {[%clk 0:02:57]}  Bg7 {[%clk 0:02:54]} 5. b4 {[%clk 0:02:57]}  O-O {[%clk 0:02:53]} 6. Be2 {[%clk 0:02:56]}  a5 {[%clk 0:02:53]} 7. b5 {[%clk 0:02:56]}  c5 {[%clk 0:02:54]} 8. bxc6 {[%clk 0:02:56]}  bxc6 {[%clk 0:02:53]} 9. O-O {[%clk 0:02:57]}  Ba6 {[%clk 0:02:53]} 10. Ba3 {[%clk 0:02:54]}  Re8 {[%clk 0:02:46]} 11. Rb1 {[%clk 0:02:52]}  Nbd7 {[%clk 0:02:42]} 12. Bxa6 {[%clk 0:02:47]}  Rxa6 {[%clk 0:02:42]} 13. c4 {[%clk 0:02:47]}  e5 {[%clk 0:02:25]} 14. dxe5 {[%clk 0:02:39]}  Nxe5 {[%clk 0:02:06]} 15. Nxe5 {[%clk 0:02:39]}  Rxe5 {[%clk 0:02:07]} 16. Nf3 {[%clk 0:02:39]}  Re4 {[%clk 0:02:01]} 17. cxd5 {[%clk 0:02:38]}  Nxd5 {[%clk 0:01:56]} 18. Qd3 {[%clk 0:02:35]}  Ra4 {[%clk 0:01:32]} 19. Qxa6 {[%clk 0:02:27]}  Rxa3 {[%clk 0:01:33]} 20. Qxc6 {[%clk 0:02:24]}  Nb4 {[%clk 0:01:29]} 21. Qc4 {[%clk 0:02:23]}  Nxa2 {[%clk 0:01:27]} 22. Rfd1 {[%clk 0:02:10]}  Qe7 {[%clk 0:01:25]} 23. Rb8+ {[%clk 0:02:07]}  Bf8 {[%clk 0:01:25]} 24. h4 {[%clk 0:01:46]}  Kg7 {[%clk 0:01:08]} 25. Rdd8 {[%clk 0:01:34]}  Qc5 {[%clk 0:01:08]} 26. Qxc5 {[%clk 0:01:16]}  Bxc5 {[%clk 0:01:09]} 27. Ng5 {[%clk 0:01:16]}  h6 {[%clk 0:00:56]} 28. Rg8+ {[%clk 0:01:13]}  Kf6 {[%clk 0:00:55]} 29. Ne4+ {[%clk 0:01:14]}  Kf5 {[%clk 0:00:53]} 30. Nxc5 {[%clk 0:01:15]}  Rc3 {[%clk 0:00:53]} 31. Rb5 {[%clk 0:01:12]}  Rc1+ {[%clk 0:00:50]} 32. Kh2 {[%clk 0:01:11]}  Nc3 {[%clk 0:00:51]} 33. Rxa5 {[%clk 0:01:10]} 1-0


[Site "https://www.chess.com"]

[Event "Titled Tuesday Blitz August 16 Early 2022"]
[White "Sorkin, Igor"]
[Black "Petrovic, Aleksa"]
[WhiteFideId "2803283"]
[BlackFideId "967629"]
[WhiteElo "2401"]
[BlackElo "2262"]
[Result "0-1"]
[Round "02"]
[TimeControl "180+2"]
[Date "2022.08.18"]
[WhiteClock "0:00:00"]
[BlackClock "0:00:00"]

1. d4 {[%clk 0:00:00]}  Nf6 {[%clk 0:00:00]} 2. Nf3 {[%clk 0:00:00]}  e6 {[%clk 0:00:00]} 3. Bf4 {[%clk 0:00:00]}  c5 {[%clk 0:00:00]} 4. e3 {[%clk 0:00:00]}  Qb6 {[%clk 0:00:00]} 5. Nc3 {[%clk 0:00:00]}  a6 {[%clk 0:00:00]} 6. a3 {[%clk 0:00:00]}  Nc6 {[%clk 0:00:00]} 7. Be2 {[%clk 0:00:00]}  d5 {[%clk 0:00:00]} 8. O-O {[%clk 0:00:00]}  Be7 {[%clk 0:00:00]} 9. Na4 {[%clk 0:00:00]}  Qa5 {[%clk 0:00:00]} 10. Nxc5 {[%clk 0:00:00]}  Bxc5 {[%clk 0:00:00]} 11. dxc5 {[%clk 0:00:00]}  Qxc5 {[%clk 0:00:00]} 12. b4 {[%clk 0:00:00]}  Qe7 {[%clk 0:00:00]} 13. c4 {[%clk 0:00:00]}  O-O {[%clk 0:00:00]} 14. Bg5 {[%clk 0:00:00]}  dxc4 {[%clk 0:00:00]} 15. Bxc4 {[%clk 0:00:00]}  h6 {[%clk 0:00:00]} 16. Bh4 {[%clk 0:00:00]}  b5 {[%clk 0:00:00]} 17. Be2 {[%clk 0:00:00]}  Bb7 {[%clk 0:00:00]} 18. Qb3 {[%clk 0:00:00]}  Rfd8 {[%clk 0:00:00]} 19. Qb2 {[%clk 0:00:00]}  e5 {[%clk 0:00:00]} 20. Rfd1 {[%clk 0:00:00]}  Qe6 {[%clk 0:00:00]} 21. h3 {[%clk 0:00:00]}  e4 {[%clk 0:00:00]} 22. Nd4 {[%clk 0:00:00]}  Nxd4 {[%clk 0:00:00]} 23. Rxd4 {[%clk 0:00:00]}  Bd5 {[%clk 0:00:00]} 24. Qd2 {[%clk 0:00:00]}  g5 {[%clk 0:00:00]} 25. Bg3 {[%clk 0:00:00]}  Rd7 {[%clk 0:00:00]} 26. a4 {[%clk 0:00:00]}  Bc4 {[%clk 0:00:00]} 27. axb5 {[%clk 0:00:00]}  Rxd4 {[%clk 0:00:00]} 28. exd4 {[%clk 0:00:00]}  Bxe2 {[%clk 0:00:00]} 29. Qxe2 {[%clk 0:00:00]}  Qd5 {[%clk 0:00:00]} 30. bxa6 {[%clk 0:00:00]}  Qxd4 {[%clk 0:00:00]} 31. Rb1 {[%clk 0:00:00]}  Nd5 {[%clk 0:00:00]} 32. b5 {[%clk 0:00:00]}  Nc3 {[%clk 0:00:00]} 33. Qb2 {[%clk 0:00:00]}  Qc4 {[%clk 0:00:00]} 34. b6 {[%clk 0:00:00]}  Nxb1 {[%clk 0:00:00]} 35. b7 {[%clk 0:00:00]}  Qxa6 {[%clk 0:00:00]} 36. bxa8=Q+ {[%clk 0:00:00]}  Qxa8 {[%clk 0:00:00]} 37. Qxb1 {[%clk 0:00:00]}  Qd5 {[%clk 0:00:00]} 38. Qb2 {[%clk 0:00:00]}  f5 {[%clk 0:00:00]} 39. Be5 {[%clk 0:00:00]}  f4 {[%clk 0:00:00]} 40. Qd4 {[%clk 0:00:00]}  Qxd4 {[%clk 0:00:00]} 41. Bxd4 {[%clk 0:00:00]}  Kf7 {[%clk 0:00:00]} 42. f3 {[%clk 0:00:00]}  exf3 {[%clk 0:00:00]} 43. gxf3 {[%clk 0:00:00]}  Kg6 {[%clk 0:00:00]} 44. h4 {[%clk 0:00:00]}  Kf5 {[%clk 0:00:00]} 45. Kg2 {[%clk 0:00:00]}  g4 {[%clk 0:00:00]} 0-1


[Site "https://www.chess.com"]

[Event "Titled Tuesday Blitz August 16 Early 2022"]
[White "Suder, Jakub"]
[Black "Boros, Denes"]
[WhiteFideId "1195310"]
[BlackFideId "722340"]
[WhiteElo "2095"]
[BlackElo "2464"]
[Result "0-1"]
[Round "02"]
[TimeControl "180+1"]
[Date "2022.08.16"]
[WhiteClock "0:01:35"]
[BlackClock "0:02:10"]

1. d4 {[%clk 0:03:00]}  e6 {[%clk 0:02:59]} 2. c4 {[%clk 0:03:01]}  Nc6 {[%clk 0:02:58]} 3. Nc3 {[%clk 0:03:00]}  Bb4 {[%clk 0:02:58]} 4. Nf3 {[%clk 0:02:59]}  d5 {[%clk 0:02:55]} 5. cxd5 {[%clk 0:02:58]}  exd5 {[%clk 0:02:56]} 6. Qc2 {[%clk 0:02:56]}  Bg4 {[%clk 0:02:54]} 7. e3 {[%clk 0:02:52]}  Nge7 {[%clk 0:02:47]} 8. Bd3 {[%clk 0:02:47]}  Qd7 {[%clk 0:02:45]} 9. a3 {[%clk 0:02:43]}  Bxc3+ {[%clk 0:02:40]} 10. bxc3 {[%clk 0:02:33]}  Bxf3 {[%clk 0:02:25]} 11. gxf3 {[%clk 0:02:33]}  g6 {[%clk 0:02:26]} 12. O-O {[%clk 0:02:22]}  Qh3 {[%clk 0:02:23]} 13. Qe2 {[%clk 0:02:19]}  Nf5 {[%clk 0:02:20]} 14. Bxf5 {[%clk 0:01:34]}  gxf5 {[%clk 0:02:18]} 15. Kh1 {[%clk 0:01:33]}  Rg8 {[%clk 0:02:12]} 16. Rg1 {[%clk 0:01:34]}  Rxg1+ {[%clk 0:02:11]} 17. Kxg1 {[%clk 0:01:35]}  O-O-O {[%clk 0:02:10]} 0-1


[Site "https://www.chess.com"]

[Event "Titled Tuesday Blitz August 16 Early 2022"]
[White "Tasev, Dejan"]
[Black "Ibarra Jerez, Jose Carlos"]
[WhiteFideId "936618"]
[BlackFideId "2226332"]
[WhiteElo "2253"]
[BlackElo "2628"]
[Result "1/2-1/2"]
[Round "02"]
[TimeControl "180+1"]
[Date "2022.08.16"]
[WhiteClock "0:00:07"]
[BlackClock "0:00:07"]

1. e4 {[%clk 0:02:59]}  c5 {[%clk 0:03:00]} 2. Nf3 {[%clk 0:02:57]}  Nf6 {[%clk 0:03:00]} 3. Nc3 {[%clk 0:02:56]}  d5 {[%clk 0:03:00]} 4. exd5 {[%clk 0:02:57]}  Nxd5 {[%clk 0:03:01]} 5. Bc4 {[%clk 0:02:57]}  e6 {[%clk 0:02:59]} 6. d3 {[%clk 0:02:57]}  Be7 {[%clk 0:02:58]} 7. Bb3 {[%clk 0:02:55]}  Nxc3 {[%clk 0:02:57]} 8. bxc3 {[%clk 0:02:55]}  O-O {[%clk 0:02:57]} 9. a4 {[%clk 0:02:53]}  Nc6 {[%clk 0:02:57]} 10. O-O {[%clk 0:02:53]}  b6 {[%clk 0:02:53]} 11. Qe2 {[%clk 0:02:50]}  Bb7 {[%clk 0:02:53]} 12. Bf4 {[%clk 0:02:45]}  Rc8 {[%clk 0:02:40]} 13. Rfe1 {[%clk 0:02:36]}  Bf6 {[%clk 0:02:35]} 14. Ne5 {[%clk 0:02:27]}  Re8 {[%clk 0:02:27]} 15. Nxc6 {[%clk 0:02:21]}  Bxc6 {[%clk 0:02:27]} 16. Bd2 {[%clk 0:02:18]}  Qd7 {[%clk 0:02:22]} 17. Qg4 {[%clk 0:02:07]}  Bb7 {[%clk 0:02:13]} 18. Bc4 {[%clk 0:02:04]}  Bc6 {[%clk 0:02:10]} 19. Bb5 {[%clk 0:01:57]}  Bxb5 {[%clk 0:02:05]} 20. axb5 {[%clk 0:01:57]}  c4 {[%clk 0:02:06]} 21. d4 {[%clk 0:01:51]}  Qxb5 {[%clk 0:02:05]} 22. Rxa7 {[%clk 0:01:51]}  Qb2 {[%clk 0:02:01]} 23. Qe4 {[%clk 0:01:46]}  Qb5 {[%clk 0:01:53]} 24. Qb7 {[%clk 0:01:40]}  Rf8 {[%clk 0:01:44]} 25. h3 {[%clk 0:01:30]}  Qf5 {[%clk 0:01:41]} 26. Qe4 {[%clk 0:01:21]}  Qxe4 {[%clk 0:01:41]} 27. Rxe4 {[%clk 0:01:21]}  Ra8 {[%clk 0:01:42]} 28. Rb7 {[%clk 0:01:20]}  Rfb8 {[%clk 0:01:27]} 29. Rxb8+ {[%clk 0:01:17]}  Rxb8 {[%clk 0:01:28]} 30. Re1 {[%clk 0:01:15]}  b5 {[%clk 0:01:09]} 31. Rb1 {[%clk 0:01:10]}  Kf8 {[%clk 0:01:08]} 32. Bf4 {[%clk 0:01:08]}  Rb7 {[%clk 0:01:07]} 33. Bd6+ {[%clk 0:01:08]}  Ke8 {[%clk 0:01:07]} 34. Bb4 {[%clk 0:01:08]}  Ra7 {[%clk 0:01:03]} 35. Bc5 {[%clk 0:01:03]}  Rb7 {[%clk 0:01:03]} 36. Kf1 {[%clk 0:01:02]}  Kd7 {[%clk 0:01:00]} 37. Ra1 {[%clk 0:01:02]}  e5 {[%clk 0:00:52]} 38. dxe5 {[%clk 0:00:41]}  Bxe5 {[%clk 0:00:50]} 39. Bb4 {[%clk 0:00:42]}  Bb8 {[%clk 0:00:44]} 40. Rd1+ {[%clk 0:00:40]}  Kc6 {[%clk 0:00:43]} 41. Rd8 {[%clk 0:00:40]}  Be5 {[%clk 0:00:42]} 42. Ke2 {[%clk 0:00:37]}  Rd7 {[%clk 0:00:39]} 43. Rxd7 {[%clk 0:00:33]}  Kxd7 {[%clk 0:00:39]} 44. g4 {[%clk 0:00:32]}  Ke6 {[%clk 0:00:39]} 45. Ke3 {[%clk 0:00:30]}  Kd5 {[%clk 0:00:39]} 46. f4 {[%clk 0:00:30]}  Bc7 {[%clk 0:00:39]} 47. f5 {[%clk 0:00:28]}  g6 {[%clk 0:00:34]} 48. fxg6 {[%clk 0:00:27]}  fxg6 {[%clk 0:00:34]} 49. Kf3 {[%clk 0:00:27]}  Be5 {[%clk 0:00:34]} 50. Ke3 {[%clk 0:00:27]}  h5 {[%clk 0:00:31]} 51. gxh5 {[%clk 0:00:25]}  gxh5 {[%clk 0:00:31]} 52. Kf3 {[%clk 0:00:25]}  Bc7 {[%clk 0:00:30]} 53. Ke3 {[%clk 0:00:25]}  Ke5 {[%clk 0:00:29]} 54. Kf3 {[%clk 0:00:26]}  Kf5 {[%clk 0:00:29]} 55. Bc5 {[%clk 0:00:24]}  Ba5 {[%clk 0:00:26]} 56. Bd4 {[%clk 0:00:23]}  Bc7 {[%clk 0:00:26]} 57. Bc5 {[%clk 0:00:23]}  Be5 {[%clk 0:00:25]} 58. Bb4 {[%clk 0:00:24]}  Bf6 {[%clk 0:00:25]} 59. Ba5 {[%clk 0:00:24]}  Be7 {[%clk 0:00:21]} 60. Bb6 {[%clk 0:00:23]}  Ba3 {[%clk 0:00:19]} 61. Bd4 {[%clk 0:00:23]}  Bb2 {[%clk 0:00:20]} 62. Ke3 {[%clk 0:00:22]}  Kg5 {[%clk 0:00:17]} 63. Kf3 {[%clk 0:00:17]}  Kf5 {[%clk 0:00:17]} 64. Ke3 {[%clk 0:00:17]}  Ba1 {[%clk 0:00:17]} 65. Kf3 {[%clk 0:00:11]}  b4 {[%clk 0:00:17]} 66. Ke3 {[%clk 0:00:11]}  b3 {[%clk 0:00:15]} 67. cxb3 {[%clk 0:00:11]}  cxb3 {[%clk 0:00:16]} 68. Kd3 {[%clk 0:00:09]}  Kf4 {[%clk 0:00:14]} 69. Bb6 {[%clk 0:00:05]}  Kg3 {[%clk 0:00:10]} 70. c4 {[%clk 0:00:06]}  Be5 {[%clk 0:00:10]} 71. c5 {[%clk 0:00:05]}  Kxh3 {[%clk 0:00:09]} 72. c6 {[%clk 0:00:06]}  b2 {[%clk 0:00:05]} 73. Kc2 {[%clk 0:00:05]}  Kg2 {[%clk 0:00:05]} 74. c7 {[%clk 0:00:06]}  Bxc7 {[%clk 0:00:05]} 75. Bxc7 {[%clk 0:00:07]}  h4 {[%clk 0:00:05]} 76. Kxb2 {[%clk 0:00:07]}  h3 {[%clk 0:00:06]} 77. Kc3 {[%clk 0:00:07]}  h2 {[%clk 0:00:07]} 78. Bxh2 {[%clk 0:00:07]} 1/2-1/2


[Site "https://www.chess.com"]

[Event "Titled Tuesday Blitz August 16 Early 2022"]
[White "Tica, Sven"]
[Black "Andreikin, Dmitry"]
[WhiteFideId "14526948"]
[BlackFideId "4158814"]
[WhiteElo "2350"]
[BlackElo "2736"]
[Result "0-1"]
[Round "02"]
[TimeControl "180+1"]
[Date "2022.08.16"]
[WhiteClock "0:00:13"]
[BlackClock "0:00:14"]

1. e4 {[%clk 0:03:00]}  c5 {[%clk 0:02:59]} 2. Nc3 {[%clk 0:03:00]}  e6 {[%clk 0:02:59]} 3. f4 {[%clk 0:03:00]}  d5 {[%clk 0:02:59]} 4. Nf3 {[%clk 0:02:55]}  Nc6 {[%clk 0:02:58]} 5. Bb5 {[%clk 0:02:53]}  Ne7 {[%clk 0:02:58]} 6. exd5 {[%clk 0:02:53]}  exd5 {[%clk 0:02:58]} 7. Qe2 {[%clk 0:02:53]}  Bg4 {[%clk 0:02:49]} 8. h3 {[%clk 0:02:19]}  Bxf3 {[%clk 0:02:48]} 9. Qxf3 {[%clk 0:02:20]}  Qb6 {[%clk 0:02:39]} 10. Bxc6+ {[%clk 0:02:12]}  Qxc6 {[%clk 0:02:38]} 11. d3 {[%clk 0:02:08]}  d4 {[%clk 0:02:32]} 12. Qxc6+ {[%clk 0:02:03]}  Nxc6 {[%clk 0:02:33]} 13. Ne4 {[%clk 0:02:03]}  f5 {[%clk 0:02:32]} 14. Ng5 {[%clk 0:01:51]}  Be7 {[%clk 0:02:26]} 15. Nf3 {[%clk 0:01:48]}  Nb4 {[%clk 0:02:25]} 16. Kd1 {[%clk 0:01:48]}  Bd6 {[%clk 0:02:23]} 17. Re1+ {[%clk 0:01:43]}  Kd7 {[%clk 0:02:21]} 18. Bd2 {[%clk 0:01:42]}  Nd5 {[%clk 0:02:21]} 19. g3 {[%clk 0:01:43]}  Rae8 {[%clk 0:02:20]} 20. c4 {[%clk 0:01:35]}  dxc3 {[%clk 0:02:15]} 21. bxc3 {[%clk 0:01:36]}  b5 {[%clk 0:02:14]} 22. Kc2 {[%clk 0:01:34]}  a5 {[%clk 0:02:07]} 23. c4 {[%clk 0:01:17]}  bxc4 {[%clk 0:01:59]} 24. dxc4 {[%clk 0:01:18]}  Nb4+ {[%clk 0:02:00]} 25. Bxb4 {[%clk 0:01:19]}  cxb4 {[%clk 0:01:58]} 26. Rad1 {[%clk 0:01:15]}  Rxe1 {[%clk 0:01:54]} 27. Rxe1 {[%clk 0:01:16]}  Rc8 {[%clk 0:01:52]} 28. Kb3 {[%clk 0:01:00]}  Kc6 {[%clk 0:01:28]} 29. Nd4+ {[%clk 0:00:55]}  Kc5 {[%clk 0:01:26]} 30. Nb5 {[%clk 0:00:47]}  Bb8 {[%clk 0:01:13]} 31. Rd1 {[%clk 0:00:42]}  g6 {[%clk 0:01:07]} 32. a3 {[%clk 0:00:34]}  bxa3 {[%clk 0:01:02]} 33. Rd5+ {[%clk 0:00:34]}  Kb6 {[%clk 0:01:02]} 34. Nxa3 {[%clk 0:00:35]}  Re8 {[%clk 0:00:57]} 35. Ka4 {[%clk 0:00:23]}  Re3 {[%clk 0:00:52]} 36. Rb5+ {[%clk 0:00:23]}  Kc7 {[%clk 0:00:51]} 37. Rxa5 {[%clk 0:00:24]}  Rxg3 {[%clk 0:00:51]} 38. Nb5+ {[%clk 0:00:24]}  Kb7 {[%clk 0:00:44]} 39. Kb4 {[%clk 0:00:20]}  Rxh3 {[%clk 0:00:40]} 40. Ra2 {[%clk 0:00:20]}  Bxf4 {[%clk 0:00:40]} 41. Ra7+ {[%clk 0:00:20]}  Kb8 {[%clk 0:00:34]} 42. Rg7 {[%clk 0:00:19]}  Be3 {[%clk 0:00:33]} 43. Nd6 {[%clk 0:00:16]}  Rh1 {[%clk 0:00:28]} 44. Kb5 {[%clk 0:00:15]}  Rb1+ {[%clk 0:00:26]} 45. Kc6 {[%clk 0:00:16]}  Rb6+ {[%clk 0:00:27]} 46. Kd5 {[%clk 0:00:16]}  Ra6 {[%clk 0:00:23]} 47. Rxh7 {[%clk 0:00:16]}  f4 {[%clk 0:00:23]} 48. Rg7 {[%clk 0:00:14]}  f3 {[%clk 0:00:23]} 49. Rxg6 {[%clk 0:00:14]}  f2 {[%clk 0:00:23]} 50. Rf6 {[%clk 0:00:13]}  Ra1 {[%clk 0:00:23]} 51. Rf8+ {[%clk 0:00:12]}  Ka7 {[%clk 0:00:18]} 52. c5 {[%clk 0:00:12]}  f1=Q {[%clk 0:00:16]} 53. Nb5+ {[%clk 0:00:13]}  Ka6 {[%clk 0:00:13]} 54. Nc7+ {[%clk 0:00:13]}  Kb7 {[%clk 0:00:13]} 55. Rxf1 {[%clk 0:00:13]}  Rxf1 {[%clk 0:00:14]} 0-1


[Site "https://www.chess.com"]